{"text_format":"3","workbook":"xlsx","n_sheets":1,"sheets":["Račun"],"not_rendered":{"defined_names":6},"read":"whole","date_system":"1900"}

{"sheet":"Račun","index":0,"n_rows":26,"n_cols":7,"rows_kept":26,"merged":[[0,1,0,2],[1,1,1,2],[1,3,1,4],[1,5,1,6],[2,1,2,2],[2,3,2,4],[2,5,2,6],[3,1,3,2],[3,3,3,4],[4,1,4,2],[4,3,4,4],[5,3,5,4],[24,1,24,4],[25,1,25,4]]}
[null,"Naziv tvrtke "]
[null,"Adresa",null,"T: Telefonski broj",null,"E-pošta"]
[null,"Poštanski broj i grad",null,"F: Broj faksa",null,"Web-mjesto"]
[null,"Primatelj računa:",null,{"$f":"\"Telefonski broj:   \"","v":"Telefonski broj:   "},null,"Broj računa:"]
[null,"Adresa:",null,{"$f":"\"Fax:    \"","v":"Fax:    "},null,"Datum izdavanja računa:"]
[{"$nulls":3},{"$f":"\"E-pošta:   \"","v":"E-pošta:   "}]
[null,{"$f":"\"Faktura za: \"","v":"Faktura za: "}]
[null,"Br. artikla","Opis","Količina","Jedinična cijena","Popust","Cijena"]
[{"$nulls":6},{"$f":"IFERROR((D9*E9)-F9,\"\")","v":0}]
[{"$nulls":6},0]
[{"$nulls":6},0]
[{"$nulls":6},0]
[{"$nulls":6},0]
[{"$nulls":6},0]
[{"$nulls":6},0]
[{"$nulls":6},0]
[{"$nulls":6},0]
[{"$nulls":6},0]
[{"$nulls":6},0]
[{"$nulls":6},0]
[{"$nulls":5},"Podzbroj fakture",{"$f":"SUM(JednostavanRačun[Cijena])","v":0}]
[{"$nulls":5},"Porezna stopa"]
[{"$nulls":5},"Porez na promet",{"$f":"IFERROR(G21*G22,\"\")","v":0}]
[{"$nulls":5},"Ostalo"]
[null,{"$f":"\"Sva plaćanja idu na račun tvrtke \"&naziv_tvrtke&\".\"","v":"Sva plaćanja idu na račun tvrtke Naziv tvrtke ."},{"$nulls":3},"Primljen predujam"]
[null,"Ukupan iznos dospijeva za sljedeći broj dana: <#>. Za kašnjenje s plaćanjem zaračunavaju se zatezne kamate u iznosu <#>% mjesečno.",{"$nulls":3},"ZBROJ",{"$f":"IFERROR((G21+G23+G24)-G25,\"\")","v":0}]